[Event "WYCC U18 Open 2019"]
[Site "Mumbai"]
[Date "2019.10.06"]
[Round "6.2"]
[White "Buckels, Valentin"]
[Black "Iniyan, P."]
[Result "1/2-1/2"]
[ECO "A04"]
[WhiteElo "2442"]
[BlackElo "2509"]
[Annotator "ChessBase"]
[PlyCount "100"]
[EventDate "2019.10.02"]
[EventType "swiss"]
[EventCountry "IND"]
[SourceTitle "playchess.com"]
[Source "ChessBase"]
[SourceQuality "1"]
[TimeControl "40/5400+30:1800+30"]

1. Nf3 {[%emt 0:00:00]} c5 {[%emt 0:00:08]} 2. c4 {[%emt 0:00:03]} Nc6 {[%emt 0:00:06]} 3. b3 {[%emt 0:00:35]} e5 {[%emt 0:00:35]} 4. Nc3 {[%emt 0:01:45]} g6 {[%emt 0:00:10]} 5. g3 {[%emt 0:10:25]} Bg7 {[%emt 0:00:29]} 6. Bg2 {[%emt 0:00:41]} Nge7 {[%emt 0:06:30]} 7. O-O {[%emt 0:02:03]} O-O {[%emt 0:00:40]} 8. Bb2 {[%emt 0:03:14]} d6 {[%emt 0:00:29]} 9. d3 {[%emt 0:02:35]} h6 {[%emt 0:00:33]} 10. Ne1 {[%emt 0:01:19]} Be6 {[%emt 0:00:59]} 11. Nd5 {[%emt 0:03:34]} a5 {[%emt 0:05:05]} 12. Nc2 {[%emt 0:05:10]} Bxd5 {[%emt 0:23:16]} 13. cxd5 {[%emt 0:00:48]} Nb4 {[%emt 0:00:03]} 14. e4 {[%emt 0:09:41]} Nxc2 {[%emt 0:00:54]} 15. Qxc2 {[%emt 0:00:02]} Qd7 {[%emt 0:30:15]} 16. a4 {[%emt 0:11:19]} g5 {[%emt 0:03:25]} 17. Qe2 {[%emt 0:08:02]} f5 {[%emt 0:04:55]} 18. Bh3 {[%emt 0:05:57]} g4 {[%emt 0:01:13]} 19. Bg2 {[%emt 0:00:10]} f4 {[%emt 0:00:14]} 20. f3 {[%emt 0:03:52]} h5 {[%emt 0:00:02]} 21. gxf4 {[%emt 0:02:43]} exf4 {[%emt 0:00:17]} 22. Bxg7 {[%emt 0:13:19]} Kxg7 {[%emt 0:00:06]} 23. e5 {[%emt 0:00:36]} Nxd5 {[%emt 0:01:57]} 24. e6 {[%emt 0:01:00]} Qe7 {[%emt 0:01:47]} 25. fxg4 {[%emt 0:02:36]} Ne3 {[%emt 0:00:22]} 26. gxh5 {[%emt 0:02:07]} Kh6 {[%emt 0:02:25]} 27. Rxf4 {[%emt 0:01:50]} Rxf4 {[%emt 0:00:07]} 28. Qxe3 {[%emt 0:00:04]} Qg5 {[%emt 0:00:05]} 29. Re1 {[%emt 0:03:11]} Rg8 {[%emt 0:07:58]} 30. Re2 {[%emt 0:00:55]} Rf5 {[%emt 0:01:27]} 31. Qxg5+ {[%emt 0:02:27]} Rfxg5 {[%emt 0:00:05]} 32. e7 {[%emt 0:00:30]} Re5 {[%emt 0:00:06]} 33. Rxe5 {[%emt 0:00:48]} dxe5 {[%emt 0:00:04]} 34. Kf2 {[%emt 0:00:08]} Re8 {[%emt 0:00:05]} 35. Bxb7 {[%emt 0:00:24]} Rxe7 {[%emt 0:00:30]} 36. Bf3 {[%emt 0:01:20]} Rf7 {[%emt 0:01:20]} 37. Ke3 {[%emt 0:00:15]} Rf4 {[%emt 0:00:05]} 38. Be4 {[%emt 0:02:09]} Kxh5 {[%emt 0:03:09]} 39. Kd2 {[%emt 0:00:04]} Rf2+ {[%emt 0:00:14]} 40. Kc3 {[%emt 0:00:05]} Rxh2 {[%emt 0:00:06]} 41. Kc4 {[%emt 0:05:36]} Rc2+ {[%emt 0:17:46]} 42. Kd5 {[%emt 0:01:25]} Rc3 {[%emt 0:00:06]} 43. Kxe5 {[%emt 0:00:17]} Rxb3 {[%emt 0:00:04]} 44. Kd6 {[%emt 0:00:52]} Ra3 {[%emt 0:00:56]} 45. Bc6 {[%emt 0:00:30]} Rc3 {[%emt 0:01:11]} 46. Bb5 {[%emt 0:00:18]} Kg4 {[%emt 0:01:52]} 47. Bc4 Ra3 {[%emt 0:00:03]} 48. Bb5 {[%emt 0:01:00]} Rc3 {[%emt 0:00:01]} 49. Bc4 {[%emt 0:00:17]} Ra3 {[%emt 0:00:06]} 50. Bb5 {[%emt 0:00:06]} Rc3 {[%emt 0:00:06]} 1/2-1/2

[Event "WYCC U18 Open 2019"]
[Site "Mumbai"]
[Date "2019.10.06"]
[Round "6.3"]
[White "Sydoryka, Vladyslav"]
[Black "Petriashvili, Nikoloz"]
[Result "0-1"]
[ECO "A06"]
[WhiteElo "2247"]
[BlackElo "2441"]
[Annotator "ChessBase"]
[PlyCount "72"]
[EventDate "2019.10.02"]
[EventType "swiss"]
[EventCountry "IND"]
[SourceTitle "playchess.com"]
[Source "ChessBase"]
[SourceQuality "1"]
[TimeControl "40/5400+30:1800+30"]

1. Nf3 {[%emt 0:00:00]} d5 {[%emt 0:00:54]} 2. g3 {[%emt 0:00:00]} c5 {[%emt 0:01:43]} 3. c4 {[%emt 0:00:11]} d4 {[%emt 0:00:47]} 4. b4 {[%emt 0:00:08]} cxb4 {[%emt 0:01:42]} 5. a3 {[%emt 0:00:13]} bxa3 {[%emt 0:04:48]} 6. Bg2 {[%emt 0:00:14]} Nc6 {[%emt 0:00:15]} 7. O-O {[%emt 0:00:06]} Nf6 {[%emt 0:00:40]} 8. e3 {[%emt 0:08:45]} e6 {[%emt 0:16:05]} 9. Bxa3 {[%emt 0:05:10]} Bxa3 {[%emt 0:00:30]} 10. Nxa3 {[%emt 0:01:31]} O-O {[%emt 0:01:14]} 11. exd4 {[%emt 0:10:18]} Nxd4 {[%emt 0:00:22]} 12. Nxd4 {[%emt 0:00:57]} Qxd4 {[%emt 0:00:02]} 13. Qe2 {[%emt 0:01:15]} Rd8 {[%emt 0:11:50]} 14. Nb5 {[%emt 0:01:29]} Qd3 {[%emt 0:10:37]} 15. Qxd3 {[%emt 0:02:13]} Rxd3 {[%emt 0:00:02]} 16. Nc7 {[%emt 0:04:04]} Rb8 {[%emt 0:00:09]} 17. Rfb1 {[%emt 0:09:52]} Nd7 {[%emt 0:16:32]} 18. Rxa7 {[%emt 0:00:44]} Rxd2 {[%emt 0:01:27]} 19. Rb5 {[%emt 0:21:38]} Rd1+ {[%emt 0:02:54]} 20. Bf1 {[%emt 0:00:12]} b6 {[%emt 0:00:12]} 21. Na6 {[%emt 0:00:14]} Bxa6 {[%emt 0:00:41]} 22. Rxa6 {[%emt 0:00:02]} Rc8 {[%emt 0:03:13]} 23. Kg2 {[%emt 0:01:15]} Kf8 {[%emt 0:01:08]} 24. h4 {[%emt 0:00:30]} Rc7 {[%emt 0:00:59]} 25. Ra8+ {[%emt 0:00:36]} Ke7 {[%emt 0:00:03]} 26. Rg8 {[%emt 0:03:03]} g6 {[%emt 0:00:35]} 27. h5 {[%emt 0:00:14]} Rd2 28. hxg6 {[%emt 0:00:33]} hxg6 {[%emt 0:02:59]} 29. Ra8 {[%emt 0:00:21]} Rc5 {[%emt 0:00:43]} 30. Rb3 {[%emt 0:00:17]} g5 {[%emt 0:01:45]} 31. Re3 {[%emt 0:00:21]} Re5 {[%emt 0:04:56]} 32. Rxe5 {[%emt 0:00:32]} Nxe5 {[%emt 0:00:07]} 33. Rb8 {[%emt 0:00:18]} Ng4 {[%emt 0:00:49]} 34. Rxb6 {[%emt 0:00:11]} Rxf2+ {[%emt 0:00:38]} 35. Kg1 {[%emt 0:00:01]} Rc2 {[%emt 0:03:02]} 36. Rb3 {[%emt 0:00:17]} f5 {[%emt 0:00:20]} 0-1

[Event "WYCC U18 Open 2019"]
[Site "Mumbai"]
[Date "2019.10.06"]
[Round "6.4"]
[White "Zhalmakhanov, Ramazan"]
[Black "Sargsyan, Shant"]
[Result "0-1"]
[ECO "C70"]
[WhiteElo "2374"]
[BlackElo "2580"]
[Annotator "ChessBase"]
[PlyCount "76"]
[EventDate "2019.10.02"]
[EventType "swiss"]
[EventCountry "IND"]
[SourceTitle "playchess.com"]
[Source "ChessBase"]
[SourceQuality "1"]
[TimeControl "40/5400+30:1800+30"]

1. e4 {[%emt 0:00:00]} e5 {[%emt 0:03:37]} 2. Nf3 {[%emt 0:00:00]} Nc6 {[%emt 0:00:28]} 3. Bb5 {[%emt 0:00:06]} a6 {[%emt 0:00:06]} 4. Ba4 {[%emt 0:00:07]} g6 {[%emt 0:00:06]} 5. O-O {[%emt 0:01:54]} b5 {[%emt 0:01:17]} 6. Bb3 {[%emt 0:00:11]} Bg7 {[%emt 0:00:06]} 7. c3 Nge7 {[%emt 0:00:19]} 8. d4 {[%emt 0:01:13]} exd4 {[%emt 0:00:27]} 9. cxd4 {[%emt 0:00:11]} d6 {[%emt 0:00:28]} 10. d5 {[%emt 0:06:57]} Na5 {[%emt 0:00:53]} 11. Bd2 {[%emt 0:00:21]} Nxb3 {[%emt 0:05:15]} 12. Qxb3 {[%emt 0:01:48]} c5 {[%emt 0:00:11]} 13. Bc3 {[%emt 0:05:47]} f6 {[%emt 0:02:49]} 14. Qc2 {[%emt 0:11:33]} b4 {[%emt 0:07:46]} 15. Be1 {[%emt 0:04:36]} a5 {[%emt 0:04:46]} 16. Nbd2 {[%emt 0:00:49]} f5 {[%emt 0:01:09]} 17. Nc4 {[%emt 0:07:35]} O-O {[%emt 0:03:13]} 18. Nfd2 {[%emt 0:07:24]} fxe4 {[%emt 0:01:39]} 19. Nxe4 {[%emt 0:00:52]} Nf5 {[%emt 0:05:22]} 20. Bd2 {[%emt 0:12:59]} Ba6 {[%emt 0:08:44]} 21. Rae1 {[%emt 0:12:39]} a4 {[%emt 0:09:37]} 22. Ng5 {[%emt 0:08:38]} Nd4 {[%emt 0:01:12]} 23. Qd3 {[%emt 0:00:39]} Rf5 {[%emt 0:05:15]} 24. Ne6 {[%emt 0:02:07]} Nxe6 {[%emt 0:02:29]} 25. Rxe6 {[%emt 0:00:22]} Bxb2 {[%emt 0:00:33]} 26. g4 {[%emt 0:03:27]} Rf7 {[%emt 0:03:02]} 27. Qe4 {[%emt 0:02:53]} Bxc4 {[%emt 0:03:39]} 28. Qxc4 {[%emt 0:01:52]} Qh4 {[%emt 0:01:07]} 29. Kg2 {[%emt 0:00:54]} Raf8 {[%emt 0:03:35]} 30. Qe2 {[%emt 0:00:19]} Rf3 {[%emt 0:01:10]} 31. Qxf3 {[%emt 0:00:58]} Rxf3 {[%emt 0:00:02]} 32. Kxf3 {[%emt 0:00:01]} Qh3+ {[%emt 0:00:07]} 33. Ke2 {[%emt 0:00:09]} Qxg4+ {[%emt 0:00:05]} 34. f3 {[%emt 0:01:23]} Qc4+ {[%emt 0:00:03]} 35. Kf2 {[%emt 0:00:04]} Qxd5 {[%emt 0:00:22]} 36. Re2 {[%emt 0:00:15]} Bd4+ {[%emt 0:01:12]} 37. Kg2 {[%emt 0:00:13]} Be5 {[%emt 0:00:51]} 38. Rfe1 {[%emt 0:02:07]} b3 {[%emt 0:00:32]} 0-1

[Event "WYCC U18 Open 2019"]
[Site "Mumbai"]
[Date "2019.10.06"]
[Round "6.5"]
[White "Gumularz, Szymon"]
[Black "Davtyan, Artur"]
[Result "0-1"]
[ECO "D31"]
[WhiteElo "2505"]
[BlackElo "2418"]
[Annotator "ChessBase"]
[PlyCount "64"]
[EventDate "2019.10.02"]
[EventType "swiss"]
[EventCountry "IND"]
[SourceTitle "playchess.com"]
[Source "ChessBase"]
[SourceQuality "1"]
[TimeControl "40/5400+30:1800+30"]

1. d4 {[%emt 0:00:00]} d5 {[%emt 0:01:02]} 2. c4 {[%emt 0:00:00]} e6 {[%emt 0:01:51]} 3. Nc3 {[%emt 0:00:00]} Be7 {[%emt 0:01:58]} 4. cxd5 {[%emt 0:01:51]} exd5 {[%emt 0:00:05]} 5. Bf4 {[%emt 0:00:08]} c6 {[%emt 0:00:03]} 6. e3 {[%emt 0:00:25]} Bf5 {[%emt 0:00:02]} 7. Nge2 {[%emt 0:00:19]} Nd7 {[%emt 0:00:36]} 8. Ng3 {[%emt 0:00:05]} Bg6 {[%emt 0:00:15]} 9. Be2 {[%emt 0:00:05]} Ngf6 {[%emt 0:12:04]} 10. h4 {[%emt 0:00:28]} h5 {[%emt 0:00:12]} 11. Rc1 {[%emt 0:00:09]} Qb6 {[%emt 0:12:00]} 12. O-O {[%emt 0:00:17]} Kf8 {[%emt 0:13:03]} 13. Bd3 {[%emt 0:08:11]} Bxd3 {[%emt 0:07:40]} 14. Qxd3 {[%emt 0:00:13]} g6 {[%emt 0:04:11]} 15. e4 {[%emt 0:11:15]} dxe4 {[%emt 0:08:06]} 16. Ngxe4 {[%emt 0:01:05]} Kg7 {[%emt 0:10:28]} 17. d5 {[%emt 0:06:43]} Rae8 {[%emt 0:00:06]} 18. Nxf6 {[%emt 0:15:49]} Bxf6 {[%emt 0:04:14]} 19. dxc6 {[%emt 0:07:50]} Qxc6 {[%emt 0:09:40]} 20. Nd5 {[%emt 0:01:01]} Qa4 {[%emt 0:00:12]} 21. Rc4 {[%emt 0:08:42]} Qxa2 {[%emt 0:01:24]} 22. Rc7 {[%emt 0:11:49]} Ne5 {[%emt 0:02:32]} 23. Qb5 {[%emt 0:14:29]} Bxh4 {[%emt 0:05:11]} 24. Qxb7 {[%emt 0:05:37]} Rhf8 {[%emt 0:00:01]} 25. g3 {[%emt 0:00:58]} Bd8 {[%emt 0:01:28]} 26. Rc8 {[%emt 0:00:04]} Nf3+ {[%emt 0:01:55]} 27. Kg2 {[%emt 0:01:07]} Ne1+ {[%emt 0:00:18]} 28. Kg1 {[%emt 0:00:12]} Qb1 {[%emt 0:01:13]} 29. Nc3 {[%emt 0:00:31]} Qd3 {[%emt 0:00:15]} 30. Qxa7 {[%emt 0:02:57]} h4 {[%emt 0:00:30]} 31. f3 {[%emt 0:02:39]} Nxf3+ {[%emt 0:00:19]} 32. Kg2 {[%emt 0:00:02]} h3+ {[%emt 0:00:03]} 0-1

[Event "WYCC U18 Open 2019"]
[Site "Mumbai"]
[Date "2019.10.06"]
[Round "6.6"]
[White "Wang, Shixu B"]
[Black "Arjun Kalyan"]
[Result "1/2-1/2"]
[ECO "D12"]
[WhiteElo "2370"]
[BlackElo "2483"]
[Annotator "ChessBase"]
[PlyCount "66"]
[EventDate "2019.10.02"]
[EventType "swiss"]
[EventCountry "IND"]
[SourceTitle "playchess.com"]
[Source "ChessBase"]
[SourceQuality "1"]
[TimeControl "40/5400+30:1800+30"]

1. d4 {[%emt 0:00:00]} d5 {[%emt 0:00:00]} 2. c4 {[%emt 0:00:00]} c6 {[%emt 0:00:00]} 3. Nf3 {[%emt 0:00:00]} Nf6 {[%emt 0:00:00]} 4. e3 {[%emt 0:00:00]} Bf5 {[%emt 0:00:07]} 5. Nc3 {[%emt 0:00:00]} e6 {[%emt 0:00:05]} 6. Nh4 {[%emt 0:00:05]} Be4 {[%emt 0:00:21]} 7. f3 {[%emt 0:00:06]} Bg6 {[%emt 0:00:05]} 8. Qb3 {[%emt 0:00:06]} Qc7 {[%emt 0:00:17]} 9. Bd2 {[%emt 0:00:05]} Be7 {[%emt 0:00:34]} 10. cxd5 {[%emt 0:00:06]} cxd5 {[%emt 0:00:35]} 11. Nxg6 {[%emt 0:00:06]} hxg6 {[%emt 0:00:07]} 12. O-O-O {[%emt 0:00:06]} Nc6 {[%emt 0:00:30]} 13. Kb1 {[%emt 0:00:10]} a6 {[%emt 0:00:37]} 14. Rc1 {[%emt 0:00:07]} Rc8 {[%emt 0:01:03]} 15. Bd3 {[%emt 0:00:16]} Nd7 {[%emt 0:00:34]} 16. Ne2 {[%emt 0:01:09]} b5 {[%emt 0:00:27]} 17. a4 {[%emt 0:00:17]} bxa4 {[%emt 0:00:33]} 18. Qxa4 {[%emt 0:00:05]} Nb6 {[%emt 0:00:30]} 19. Qxa6 {[%emt 0:00:10]} Ra8 {[%emt 0:00:54]} 20. Qb5 {[%emt 0:00:05]} Kd7 {[%emt 0:00:54]} 21. Rc3 {[%emt 0:00:13]} Na4 {[%emt 0:00:33]} 22. Rxc6 {[%emt 0:00:35]} Qxc6 {[%emt 0:00:07]} 23. Rc1 {[%emt 0:00:14]} Qxb5 {[%emt 0:00:06]} 24. Bxb5+ {[%emt 0:00:04]} Kd8 {[%emt 0:00:05]} 25. Rc6 {[%emt 0:00:41]} Nxb2 {[%emt 0:02:48]} 26. Kxb2 {[%emt 0:00:15]} Rxh2 {[%emt 0:01:43]} 27. g3 {[%emt 0:06:40]} Rf2 {[%emt 0:03:10]} 28. f4 {[%emt 0:00:34]} g5 {[%emt 0:01:07]} 29. Ra6 {[%emt 0:09:24]} Rxa6 {[%emt 0:03:32]} 30. Bxa6 {[%emt 0:00:03]} gxf4 {[%emt 0:00:31]} 31. exf4 {[%emt 0:01:33]} Bd6 {[%emt 0:08:49]} 32. Kc2 {[%emt 0:03:05]} Ke7 {[%emt 0:02:42]} 33. Bd3 {[%emt 0:01:12]} f6 {[%emt 0:01:35]} 1/2-1/2

[Event "WYCC U18 Open 2019"]
[Site "Mumbai"]
[Date "2019.10.06"]
[Round "6.8"]
[White "Gazik, Viktor"]
[Black "Aditya Mittal"]
[Result "1/2-1/2"]
[ECO "B90"]
[WhiteElo "2546"]
[BlackElo "2430"]
[Annotator "ChessBase"]
[PlyCount "108"]
[EventDate "2019.10.02"]
[EventType "swiss"]
[EventCountry "IND"]
[SourceTitle "playchess.com"]
[Source "ChessBase"]
[SourceQuality "1"]
[TimeControl "40/5400+30:1800+30"]

1. e4 {[%emt 0:00:00]} c5 {[%emt 0:00:00]} 2. Nf3 {[%emt 0:00:00]} d6 {[%emt 0:00:00]} 3. d4 {[%emt 0:00:10]} cxd4 {[%emt 0:00:05]} 4. Nxd4 {[%emt 0:00:06]} Nf6 {[%emt 0:00:04]} 5. Nc3 {[%emt 0:00:09]} a6 {[%emt 0:00:06]} 6. h3 {[%emt 0:01:11]} e6 {[%emt 0:00:09]} 7. g4 {[%emt 0:00:12]} d5 {[%emt 0:00:21]} 8. Nde2 {[%emt 0:02:09]} Nc6 {[%emt 0:00:09]} 9. exd5 {[%emt 0:12:09]} Nxd5 {[%emt 0:00:10]} 10. Bg2 {[%emt 0:04:27]} Nxc3 {[%emt 0:02:37]} 11. Qxd8+ {[%emt 0:03:03]} Nxd8 {[%emt 0:00:02]} 12. Nxc3 {[%emt 0:00:11]} Bd7 {[%emt 0:00:06]} 13. O-O {[%emt 0:09:31]} Bc6 {[%emt 0:03:22]} 14. Ne4 {[%emt 0:02:01]} Be7 {[%emt 0:04:22]} 15. Bf4 {[%emt 0:08:40]} O-O {[%emt 0:02:00]} 16. Rad1 {[%emt 0:03:31]} f5 {[%emt 0:13:18]} 17. Bd6 {[%emt 0:04:34]} Bxd6 {[%emt 0:03:16]} 18. Nxd6 {[%emt 0:00:09]} fxg4 {[%emt 0:00:09]} 19. hxg4 {[%emt 0:01:12]} Rf4 {[%emt 0:00:57]} 20. f3 {[%emt 0:15:28]} Nf7 {[%emt 0:00:37]} 21. Kh2 {[%emt 0:03:43]} Rf8 {[%emt 0:11:42]} 22. Kg3 {[%emt 0:01:41]} g5 {[%emt 0:04:12]} 23. Nxf7 {[%emt 0:02:25]} R8xf7 {[%emt 0:00:08]} 24. Rd6 {[%emt 0:04:03]} Bd5 {[%emt 0:11:24]} 25. b3 {[%emt 0:01:35]} Kf8 {[%emt 0:00:48]} 26. Rd8+ {[%emt 0:01:09]} Ke7 {[%emt 0:00:36]} 27. Rg8 {[%emt 0:01:39]} h6 {[%emt 0:02:19]} 28. c4 {[%emt 0:00:06]} Bc6 {[%emt 0:00:19]} 29. Rh8 {[%emt 0:03:43]} R4f6 {[%emt 0:01:31]} 30. Rf2 {[%emt 0:00:55]} Kd6 {[%emt 0:02:14]} 31. b4 {[%emt 0:04:51]} Kc7 {[%emt 0:01:52]} 32. a3 {[%emt 0:04:29]} e5 {[%emt 0:06:44]} 33. Re2 {[%emt 0:00:15]} Bxf3 {[%emt 0:00:17]} 34. Rxe5 {[%emt 0:00:05]} Bxg2 {[%emt 0:00:09]} 35. Kxg2 {[%emt 0:00:04]} Rf2+ {[%emt 0:01:08]} 36. Kg1 {[%emt 0:00:05]} R2f4 {[%emt 0:01:34]} 37. Rc5+ {[%emt 0:02:13]} Kd7 {[%emt 0:00:06]} 38. Rxh6 Rxg4+ {[%emt 0:00:42]} 39. Kh2 {[%emt 0:01:38]} Rh4+ {[%emt 0:07:35]} 40. Rxh4 {[%emt 0:00:10]} gxh4 {[%emt 0:00:02]} 41. b5 {[%emt 0:33:07]} axb5 {[%emt 0:33:49]} 42. cxb5 {[%emt 0:00:00]} Rf2+ {[%emt 0:00:00]} 43. Kg1 {[%emt 0:00:00]} Kd6 {[%emt 0:00:00]} 44. Rc4 {[%emt 0:00:00]} Rb2 {[%emt 0:00:00]} 45. Rxh4 {[%emt 0:00:00]} Rxb5 {[%emt 0:00:00]} 46. Kf2 {[%emt 0:00:00]} Rb3 {[%emt 0:00:00]} 47. a4 {[%emt 0:00:00]} Kc5 {[%emt 0:00:00]} 48. Ke2 {[%emt 0:00:00]} Rb4 {[%emt 0:00:00]} 49. Rh7 {[%emt 0:00:00]} Kb6 {[%emt 0:00:00]} 50. Kd3 {[%emt 0:00:00]} Rxa4 {[%emt 0:00:00]} 51. Kc3 {[%emt 0:00:00]} Ka6 {[%emt 0:00:00]} 52. Kb3 {[%emt 0:00:00]} b5 {[%emt 0:00:00]} 53. Rh6+ {[%emt 0:00:00]} Ka5 {[%emt 0:00:00]} 54. Rh3 {[%emt 0:00:00]} Rg4 {[%emt 0:00:00]} 1/2-1/2

[Event "WYCC U18 Open 2019"]
[Site "Mumbai"]
[Date "2019.10.06"]
[Round "6.9"]
[White "Zarubitski, Viachaslau"]
[Black "Kozak, Antoni"]
[Result "1-0"]
[ECO "B18"]
[WhiteElo "2435"]
[BlackElo "2354"]
[Annotator "ChessBase"]
[PlyCount "99"]
[EventDate "2019.10.02"]
[EventType "swiss"]
[EventCountry "IND"]
[SourceTitle "playchess.com"]
[Source "ChessBase"]
[SourceQuality "1"]
[TimeControl "40/5400+30:1800+30"]

1. e4 {[%emt 0:00:00]} c6 {[%emt 0:00:00]} 2. d4 {[%emt 0:00:17]} d5 {[%emt 0:00:00]} 3. Nd2 {[%emt 0:00:10]} dxe4 {[%emt 0:00:00]} 4. Nxe4 {[%emt 0:00:03]} Bf5 {[%emt 0:00:00]} 5. Ng3 {[%emt 0:00:13]} Bg6 {[%emt 0:00:00]} 6. Nh3 {[%emt 0:00:28]} e6 {[%emt 0:00:14]} 7. Nf4 {[%emt 0:00:14]} Bd6 {[%emt 0:00:05]} 8. Ngh5 {[%emt 0:00:11]} Kf8 {[%emt 0:11:17]} 9. Be3 {[%emt 0:01:22]} Nd7 {[%emt 0:01:55]} 10. Be2 {[%emt 0:00:19]} Ngf6 {[%emt 0:00:10]} 11. Nxf6 {[%emt 0:02:00]} Nxf6 {[%emt 0:00:11]} 12. Nxg6+ {[%emt 0:00:39]} hxg6 {[%emt 0:00:08]} 13. c3 {[%emt 0:02:53]} Nd5 {[%emt 0:00:49]} 14. Bd2 {[%emt 0:00:24]} c5 {[%emt 0:17:37]} 15. dxc5 {[%emt 0:06:25]} Bxc5 {[%emt 0:02:14]} 16. Bf3 {[%emt 0:00:49]} Qb6 {[%emt 0:01:54]} 17. O-O {[%emt 0:00:14]} Rd8 {[%emt 0:00:08]} 18. Qb3 {[%emt 0:03:47]} Ke7 {[%emt 0:06:04]} 19. Qxb6 {[%emt 0:01:42]} Nxb6 {[%emt 0:01:10]} 20. Rad1 {[%emt 0:00:26]} Rd7 {[%emt 0:02:46]} 21. Bc1 {[%emt 0:02:09]} Rhd8 {[%emt 0:01:53]} 22. Rxd7+ {[%emt 0:01:17]} Rxd7 {[%emt 0:00:05]} 23. Rd1 {[%emt 0:00:01]} Rxd1+ {[%emt 0:00:34]} 24. Bxd1 {[%emt 0:00:03]} Nd7 {[%emt 0:06:12]} 25. Kf1 {[%emt 0:01:25]} e5 26. Bf3 {[%emt 0:01:48]} b6 {[%emt 0:02:44]} 27. Bb7 {[%emt 0:00:16]} Ke6 {[%emt 0:10:16]} 28. Ke2 {[%emt 0:00:33]} f5 {[%emt 0:00:16]} 29. Bc8 {[%emt 0:09:12]} Be7 {[%emt 0:01:47]} 30. b3 {[%emt 0:21:16]} Kd6 {[%emt 0:05:10]} 31. Ba6 {[%emt 0:03:11]} e4 {[%emt 0:00:44]} 32. f3 {[%emt 0:15:50]} Bf6 {[%emt 0:05:52]} 33. Bd2 {[%emt 0:00:32]} exf3+ {[%emt 0:04:43]} 34. gxf3 {[%emt 0:00:22]} Ne5 {[%emt 0:00:17]} 35. f4 {[%emt 0:00:37]} Nd7 {[%emt 0:00:39]} 36. b4 {[%emt 0:02:21]} Nf8 {[%emt 0:00:46]} 37. a4 {[%emt 0:03:01]} Ne6 {[%emt 0:00:29]} 38. Bc8 {[%emt 0:01:00]} Nd8 {[%emt 0:04:12]} 39. Kd3 {[%emt 0:01:26]} Kc7 {[%emt 0:01:01]} 40. Ba6 {[%emt 0:00:02]} Nf7 {[%emt 0:00:05]} 41. Bc4 {[%emt 0:30:56]} Nd6 {[%emt 0:30:04]} 42. Bd5 {[%emt 0:00:13]} a6 {[%emt 0:12:05]} 43. Be3 {[%emt 0:00:54]} b5 {[%emt 0:02:17]} 44. a5 {[%emt 0:01:20]} Nc8 {[%emt 0:00:06]} 45. Bg2 {[%emt 0:16:42]} Ne7 {[%emt 0:03:00]} 46. Bb6+ {[%emt 0:02:39]} Kd6 {[%emt 0:00:24]} 47. Bb7 {[%emt 0:00:00]} Nd5 {[%emt 0:00:00]} 48. Bc5+ {[%emt 0:00:00]} Ke6 {[%emt 0:00:00]} 49. Bc8+ {[%emt 0:00:00]} Kf7 {[%emt 0:00:00]} 50. Bxa6 {[%emt 0:00:00]} 1-0

[Event "WYCC U18 Open 2019"]
[Site "Mumbai"]
[Date "2019.10.06"]
[Round "6.11"]
[White "Srijit Paul"]
[Black "Pultinevicius, Paulius"]
[Result "1/2-1/2"]
[ECO "B12"]
[WhiteElo "2317"]
[BlackElo "2503"]
[Annotator "ChessBase"]
[PlyCount "140"]
[EventDate "2019.10.02"]
[EventType "swiss"]
[EventCountry "IND"]
[SourceTitle "playchess.com"]
[Source "ChessBase"]
[SourceQuality "1"]
[TimeControl "40/5400+30:1800+30"]

1. e4 {[%emt 0:00:00]} c6 {[%emt 0:00:00]} 2. d4 {[%emt 0:00:00]} d5 {[%emt 0:00:00]} 3. e5 {[%emt 0:00:02]} Bf5 {[%emt 0:00:00]} 4. Nd2 {[%emt 0:00:04]} e6 {[%emt 0:01:07]} 5. Nb3 {[%emt 0:00:05]} Nd7 {[%emt 0:00:09]} 6. Nf3 {[%emt 0:00:04]} Bg6 {[%emt 0:01:37]} 7. Be2 {[%emt 0:00:06]} Nh6 {[%emt 0:00:10]} 8. O-O {[%emt 0:00:10]} Nf5 {[%emt 0:00:14]} 9. a4 {[%emt 0:00:27]} Be7 {[%emt 0:00:35]} 10. a5 {[%emt 0:01:09]} a6 {[%emt 0:00:06]} 11. c4 {[%emt 0:02:10]} dxc4 {[%emt 0:10:52]} 12. Bxc4 {[%emt 0:00:27]} O-O {[%emt 0:00:32]} 13. g4 {[%emt 0:10:35]} Nh6 {[%emt 0:04:26]} 14. h3 {[%emt 0:01:05]} c5 {[%emt 0:00:36]} 15. Be3 {[%emt 0:05:32]} Be4 {[%emt 0:24:00]} 16. Nfd2 {[%emt 0:13:52]} Bc6 {[%emt 0:03:42]} 17. f4 {[%emt 0:01:50]} b5 {[%emt 0:08:01]} 18. axb6 {[%emt 0:00:35]} cxd4 {[%emt 0:01:09]} 19. Nxd4 {[%emt 0:04:57]} Bb7 {[%emt 0:01:13]} 20. Qe2 {[%emt 0:08:39]} Bc5 {[%emt 0:02:02]} 21. N2b3 {[%emt 0:01:42]} Bxb6 {[%emt 0:01:34]} 22. g5 {[%emt 0:13:16]} Nf5 {[%emt 0:00:17]} 23. Nxf5 {[%emt 0:00:06]} exf5 {[%emt 0:00:04]} 24. Rfd1 {[%emt 0:02:16]} Qc7 {[%emt 0:11:03]} 25. Rac1 {[%emt 0:02:50]} Nxe5 {[%emt 0:02:37]} 26. Bd5 {[%emt 0:01:06]} Nc6 {[%emt 0:02:42]} 27. Qf2 {[%emt 0:09:48]} Bxe3 {[%emt 0:00:08]} 28. Qxe3 {[%emt 0:00:04]} Rfe8 {[%emt 0:00:42]} 29. Qf2 {[%emt 0:00:45]} Rad8 {[%emt 0:00:15]} 30. Nc5 {[%emt 0:00:17]} Ba8 {[%emt 0:05:45]} 31. Nxa6 {[%emt 0:02:34]} Qa5 {[%emt 0:00:58]} 32. Nc5 {[%emt 0:00:14]} Qb5 {[%emt 0:02:49]} 33. Bf3 {[%emt 0:01:38]} Rd4 {[%emt 0:03:04]} 34. Re1 {[%emt 0:02:54]} Red8 {[%emt 0:01:29]} 35. Qe3 g6 {[%emt 0:01:01]} 36. Ne6 {[%emt 0:04:06]} Rd3 {[%emt 0:00:53]} 37. Qc5 {[%emt 0:12:12]} Qxc5+ {[%emt 0:01:11]} 38. Rxc5 {[%emt 0:00:02]} Nd4 {[%emt 0:07:37]} 39. Nxd4 {[%emt 0:00:32]} R3xd4 {[%emt 0:01:56]} 40. Bxa8 {[%emt 0:00:16]} Rxa8 {[%emt 0:00:05]} 41. Rf1 {[%emt 0:30:38]} Raa4 {[%emt 0:32:55]} 42. b3 {[%emt 0:00:00]} Ra2 {[%emt 0:00:00]} 43. Rc3 {[%emt 0:00:00]} Rdd2 {[%emt 0:00:00]} 44. Rg3 {[%emt 0:00:00]} Rab2 {[%emt 0:00:00]} 45. Rc1 {[%emt 0:00:00]} h5 {[%emt 0:00:00]} 46. Rf3 {[%emt 0:00:00]} h4 {[%emt 0:00:00]} 47. Re1 {[%emt 0:00:00]} Kf8 {[%emt 0:00:00]} 48. Kf1 {[%emt 0:00:00]} Rg2 {[%emt 0:00:00]} 49. Ree3 {[%emt 0:00:00]} Rh2 {[%emt 0:00:00]} 50. Kg1 {[%emt 0:00:00]} Rhc2 {[%emt 0:00:00]} 51. Re1 {[%emt 0:00:00]} Rc6 {[%emt 0:00:00]} 52. Kf1 {[%emt 0:00:00]} Rb6 {[%emt 0:00:00]} 53. Ree3 {[%emt 0:00:00]} Ra6 {[%emt 0:00:00]} 54. Re2 {[%emt 0:00:00]} Ra1+ {[%emt 0:00:00]} 55. Kf2 {[%emt 0:00:00]} Rbb1 {[%emt 0:00:00]} 56. Ree3 {[%emt 0:00:00]} Rb2+ {[%emt 0:00:00]} 57. Re2 {[%emt 0:00:00]} Rab1 {[%emt 0:00:00]} 58. Rxb2 {[%emt 0:00:00]} Rxb2+ {[%emt 0:00:00]} 59. Ke1 {[%emt 0:00:00]} Ke7 {[%emt 0:00:00]} 60. Rd3 {[%emt 0:00:00]} f6 {[%emt 0:00:00]} 61. gxf6+ {[%emt 0:00:00]} Kxf6 {[%emt 0:00:00]} 62. Rc3 {[%emt 0:00:00]} Ke6 {[%emt 0:00:00]} 63. Rd3 {[%emt 0:00:00]} Kf7 {[%emt 0:00:00]} 64. Kf1 {[%emt 0:00:00]} g5 {[%emt 0:00:00]} 65. fxg5 {[%emt 0:00:00]} Kg6 {[%emt 0:00:00]} 66. Rd4 {[%emt 0:00:00]} Kxg5 {[%emt 0:00:01]} 67. b4 {[%emt 0:00:00]} f4 {[%emt 0:02:08]} 68. Rd5+ {[%emt 0:00:00]} Kf6 {[%emt 0:01:04]} 69. Rh5 {[%emt 0:00:00]} Rxb4 {[%emt 0:00:27]} 70. Kf2 {[%emt 0:00:00]} Rb2+ {[%emt 0:01:11]} 1/2-1/2